Cogmind - Beta 9.6 @@@ ROGUE MODE // 2020.09.01 @ 20:30:53 Player: aoemica Result: Destroyed by D-53 Grenadier with Mini Grenade Launcher Performance ------------- Evolutions (0) 0 Regions Visited (4) 800 Robots Destroyed (26) 130 Value Destroyed (547) 547 Prototype IDs (2) 40 Alien Tech Used (0) 0 Bonus (7) 7 TOTAL SCORE: 1524 Bonus ------- Follower Combat Kills 7 Cogmind --------- Core Integrity 0/250 Matter 288/300 Energy 265/265 System Corruption 0% Temperature Cool (81) Movement Treading (180) Ox1 Location -9/Mines Parts ------- > --- POWER (1) -------- Improved Ion Engine > --- PROPULSION (2) --- Light Treads Light Treads > --- UTILITY (2) ------ Large Storage Unit Large Storage Unit > --- WEAPON (2) ------- Particle Cannon Light Assault Rifle > --- INVENTORY (16) --- Improved Ion Engine Improved Ion Engine Wheel Armored Wheel Armored Wheel Armored Wheel Armored Wheel Small Storage Unit Medium Storage Unit Light Assault Rifle Light Assault Rifle Light Cannon Mini Grenade Launcher Mini Grenade Launcher Peak State ------------ > --- POWER ------------ Improved Ion Engine > --- PROPULSION ------- Light Treads Light Treads > --- UTILITY ---------- Large Storage Unit Large Storage Unit > --- WEAPON ----------- Particle Cannon Light Assault Rifle > --- INVENTORY -------- Ion Engine Ion Engine Wheel Armored Wheel Armored Wheel Armored Wheel Armored Wheel Small Storage Unit Medium Storage Unit Particle Cannon Light Assault Rifle Light Assault Rifle Mini Grenade Launcher Mini Grenade Launcher [Rating: 11] Favorites ----------- Power Improved Ion Engine Engine Improved Ion Engine Propulsion Light Treads Treads Light Treads Wheel Wheel Utility Large Storage Unit Storage Large Storage Unit Protection Light Armor Plating Weapon Particle Cannon Energy Gun Small Laser Energy Cannon Particle Cannon Ballistic Gun Light Assault Rifle Launcher Mini Grenade Launcher Build | -11 -10 -10 -10 -9 ------- Run | Scr Mat Min Exi Min Slots Evolved . | . . . . . Power . | . . . . . Propulsion . | . . . . . Utility . | . . . . . Weapon . | . . . . . Parts Attached 28 | 6 19 . . 3 Power 3 | 1 2 . . . Engine 3 | 1 2 . . . Core . | . . . . . Reactor . | . . . . . Propulsion 4 | 2 2 . . . Treads 3 | 1 2 . . . Leg . | . . . . . Wheel 1 | 1 . . . . Hover . | . . . . . Flight . | . . . . . Utility 7 | 1 6 . . . Device . | . . . . . Storage 6 | 1 5 . . . Processor . | . . . . . Hackware . | . . . . . Protection 1 | . 1 . . . Artifact . | . . . . . Weapon 14 | 2 9 . . 3 Energy Gun 2 | 1 1 . . . Energy Cannon 4 | . 2 . . 2 Ballistic Gun 5 | 1 4 . . . Ballistic Cannon . | . . . . . Launcher 3 | . 2 . . 1 Special Weapon . | . . . . . Impact Weapon . | . . . . . Slashing Weapon . | . . . . . Piercing Weapon . | . . . . . Special Melee Weapon . | . . . . . Unidentified Prototypes . | . . . . . Parts Lost 1 | . . . . 1 Power . | . . . . . Propulsion . | . . . . . Utility . | . . . . . Weapon 1 | . . . . 1 Highest Loss Streak 1 | . . . . 1 Average Slot Usage (%) 98 | . 97 100 100 100 Engine 14 | . 14 14 14 14 Treads 26 | . 25 28 28 28 Wheel 1 | . 2 . . . Storage 26 | . 23 28 28 28 Energy Gun 1 | . 2 . . . Energy Cannon 11 | . 8 14 14 13 Ballistic Gun 14 | . 16 14 14 14 Naked Turns . | . . . . . Heaviest Build 44 | 10 44 44 44 44 Greatest Support 40 | 20 40 40 40 40 Greatest Overweight (x) 1 | . 1 1 1 1 Average Overweight (x) . | . . 1 1 1 Largest Inventory Capacity 16 | 6 16 16 16 16 Average Capacity 12 | 5 8 16 16 16 Most Carried 16 | 5 16 16 15 15 Average Carried 12 | 3 7 15 15 14 Final Capacity 16 | 6 16 16 16 16 Final Carried 16 | 5 16 15 15 14 Class Distribution -------------------- 72% | Mutant 27% | Commander-Mutant Dominant Class ---------------- Mutant | -10/Materials Mutant | -10/Mines Commander-Mutant | -10/Exiles Commander-Mutant | -9/Mines Resources | -11 -10 -10 -10 -9 ----------- Run | Scr Mat Min Exi Min Matter Collected 744 | 269 441 2 . 32 Remotely . | . . . . . Salvage Created 1005 | 97 834 60 . 14 Parts 49 | 1 45 . . 3 Haulers Intercepted 2 | . 2 . . . Recyclers Shooed 5 | . 5 . . . Parts Field Recycled . | . . . . . Retrieved Matter . | . . . . . Parts Self-Destructed . | . . . . . Prevented . | . . . . . Kills | -11 -10 -10 -10 -9 ------- Run | Scr Mat Min Exi Min Combat Hostiles Destroyed 16 | . 14 . . 2 Guns 7 | . 7 . . . Cannons 5 | . 4 . . 1 AOE 4 | . 3 . . 1 Classes Destroyed 6 | 1 5 . . . Worker 1 | . 1 . . . Hauler 2 | . 2 . . . Recycler 4 | 1 2 1 . . Watcher 3 | . 3 . . . Swarmer 5 | . 3 . . 2 Grunt 11 | . 11 . . . Best Kill Streak 6 | 1 6 1 . 2 Combat Bots Only 3 | . 3 . . 2 Max Kills in Single Turn 4 | 1 4 1 . 1 Gunslinging 1 | . 1 . . . Exploded 3 | . 3 . . 1 Melee . | . . . . . Uniques/NPCs Destroyed . | . . . . . Combat | -11 -10 -10 -10 -9 -------- Run | Scr Mat Min Exi Min Damage Taken 1090 | . 589 . . 501 Core 257 | . 110 . . 147 Absorbed by Shields . | . . . . . Core Remaining (%) 100 | 100 . . . . Volleys Fired 90 | 3 79 1 . 7 Largest 2 | 2 2 2 . 2 Hottest 88 | 60 88 88 . 88 Shots Fired 173 | 6 152 2 . 13 Gun 134 | 6 121 1 . 6 Cannon 37 | . 30 1 . 6 Launcher 2 | . 1 . . 1 Special . | . . . . . Kinetic 110 | 3 100 1 . 6 Thermal 61 | 3 51 1 . 6 Explosive 2 | . 1 . . 1 Electromagnetic . | . . . . . Robot Hit Streak 11 | 5 11 2 . 5 Robot Miss Streak 3 | . 3 . . 2 Penetration Max . | . . . . . Secondary Targets 1 | . 1 . . . Max Gunslinging Chain 1 | . 1 . . . Shots Hit Robots 123 | 5 110 1 . 7 Core Hits 42 | 2 36 2 . 2 Critical Hits 1 | . 1 . . . Critical Kills . | . . . . . Critical Parts Destroyed 1 | . 1 . . . Melee Attacks . | . . . . . Impact . | . . . . . Slashing . | . . . . . Piercing . | . . . . . Sneak Attacks . | . . . . . Combat Hostiles . | . . . . . Follow-up Attacks . | . . . . . Damage Inflicted 1966 | 62 1693 23 . 188 Guns 1118 | 62 1032 . . 24 Cannons 560 | . 477 20 . 63 Explosions 285 | . 184 . . 101 Melee . | . . . . . Ramming 3 | . . 3 . . Kinetic 920 | 39 857 . . 24 Thermal 758 | 23 652 20 . 63 Explosive 285 | . 184 . . 101 Electromagnetic . | . . . . . Impact . | . . . . . Slashing . | . . . . . Piercing . | . . . . . Highest Corruption . | . . . . . Average Corruption . | . . . . . Corruption Purged . | . . . . . Overload Shots . | . . . . . Overflow Damage 17 | . 17 . . . Projectiles 17 | . 17 . . . Explosions . | . . . . . Melee . | . . . . . Knockbacks . | . . . . . Impact . | . . . . . Kinetic . | . . . . . Secondary . | . . . . . Self-Inflicted Damage . | . . . . . Shots . | . . . . . Rammed 1 | . . 1 . . Targets Rammed 1 | . . 1 . . Kicked . | . . . . . Crushed . | . . . . . Highest Temperature 276 | . 276 50 . 100 Average Temperature 67 | . 70 30 . 47 Received Heat Transfer 303 | . 303 . . . Siege Activations . | . . . . . Robots Corrupted . | . . . . . Combat Hostiles . | . . . . . Parts Fried . | . . . . . Impact Corruptions . | . . . . . Robots Melted . | . . . . . Combat Hostiles . | . . . . . Parts Melted . | . . . . . Heat Transferred 1412 | 50 1214 37 . 111 Parts Sabotaged . | . . . . . Parts Stolen . | . . . . . Parts Stripped . | . . . . . Power Chain Reactions . | . . . . . Missiles Intercepted . | . . . . . Alert | -11 -10 -10 -10 -9 ------- Run | Scr Mat Min Exi Min Peak Influence 257 | 5 257 35 . 111 Average Influence 63 | 2 108 11 . 83 Maximum Alert Level 1 | . 1 . . . Low Security (%) 99 | 100 98 100 . 100 Level 1 . | . 1 . . . Level 2 . | . . . . . Level 3 . | . . . . . Level 4 . | . . . . . Level 5 . | . . . . . High Security . | . . . . . Max Security . | . . . . . Squads Dispatched 4 | . 4 . . . Investigation 3 | . 3 . . . Extermination . | . . . . . Reinforcement 1 | . 1 . . . Assault . | . . . . . Garrison . | . . . . . Intercept . | . . . . . Construction Impeded . | . . . . . Haulers Reinforced . | . . . . . Stealth | -11 -10 -10 -10 -9 --------- Run | Scr Mat Min Exi Min Distress Signals 1 | . 1 . . . Communications Jammed . | . . . . . Distress Signals . | . . . . . Times Spotted 29 | . 24 . . 5 Peak Tracking Total 4 | . 4 . . 3 Tactical Retreats 1 | . 1 . . . Traps | -11 -10 -10 -10 -9 ------- Run | Scr Mat Min Exi Min Traps Triggered 2 | . 2 . . . Indirectly . | . . . . . Trap Hack Attempts . | . . . . . Triggered . | . . . . . Disarmed . | . . . . . Reprogrammed . | . . . . . Reused . | . . . . . Traps Extracted . | . . . . . Installed . | . . . . . Triggered . | . . . . . Machines | -11 -10 -10 -10 -9 ---------- Run | Scr Mat Min Exi Min Machines Disabled 2 | . . . . 2 Max in Single Turn 2 | . . . . 2 Machines Sabotaged . | . . . . . Garrisons Compromised . | . . . . . Overloaded Fab Kills . | . . . . . Fab Network Shutdowns . | . . . . . Hacking | -11 -10 -10 -10 -9 --------- Run | Scr Mat Min Exi Min Machines Accessed 8 | . 8 . . . Terminals 6 | . 6 . . . Fabricators . | . . . . . Repair Stations 1 | . 1 . . . Recycling Units 1 | . 1 . . . Scanalyzers . | . . . . . Garrison Access . | . . . . . Total Hacks 28 | . 28 . . . Successful 13 | . 13 . . . Failed 14 | . 14 . . . Catastrophic 2 | . 2 . . . Database Lockouts 1 | . 1 . . . Manual 17 | . 15 . 2 . Terminals 23 | . 23 . . . Fabricators . | . . . . . Repair Stations 4 | . 4 . . . Recycling Units 1 | . 1 . . . Scanalyzers . | . . . . . Garrison Access . | . . . . . Terminal Hacks 6 | . 6 . . . Robot Analysis 2 | . 2 . . . Prototype ID Bank 1 | . 1 . . . Emergency Access Points 1 | . 1 . . . Terminal Index 1 | . 1 . . . Recall Investigation 1 | . 1 . . . Fabricator Hacks . | . . . . . Repair Station Hacks 4 | . 4 . . . Scan Component 2 | . 2 . . . Repair 2 | . 2 . . . Recycling Unit Hacks . | . . . . . Scanalyzer . | . . . . . Garrison Access Hacks . | . . . . . Unauthorized Hacks 3 | . 3 . . . Terminals 2 | . 2 . . . Assimilate 1 | . 1 . . . Botnet 1 | . 1 . . . Fabricators . | . . . . . Repair Stations . | . . . . . Recycling Units 1 | . 1 . . . Tunnel 1 | . 1 . . . Scanalyzers . | . . . . . Garrison Access . | . . . . . Data Cores Recovered . | . . . . . Used . | . . . . . Hacking Detections 7 | . 7 . . . Full Trace Events . | . . . . . Feedback Events . | . . . . . Feedback Blocked . | . . . . . Robot Schematics Acquired . | . . . . . Robots Built . | . . . . . Matter . | . . . . . Time . | . . . . . Total Robot Build Rating . | . . . . . Part Schematics Acquired . | . . . . . Parts Built . | . . . . . Matter . | . . . . . Time . | . . . . . Total Part Build Rating . | . . . . . Parts Repaired 2 | . 2 . . . Time 58 | . 58 . . . Parts Recycled . | . . . . . Recycled Matter . | . . . . . Retrieved Matter . | . . . . . Retrieved Components . | . . . . . Parts Scanalyzed . | . . . . . Part Schematics Acquired . | . . . . . Parts Damaged . | . . . . . Bothacking | -11 -10 -10 -10 -9 ------------ Run | Scr Mat Min Exi Min Used RIF Installer . | . . . . . Robots Hacked . | . . . . . Non-combat . | . . . . . Combat . | . . . . . Robot Hacks Applied . | . . . . . Relay Couplers Released . | . . . . . Robots Rewired . | . . . . . Allies Hacked . | . . . . . Hacks Repelled . | . . . . . Allies | -11 -10 -10 -10 -9 -------- Run | Scr Mat Min Exi Min Total Allies 4 | . 1 3 . . Largest Group 4 | . 1 4 4 4 Highest-Rated Group 50 | . 10 50 50 50 Highest-Rated Ally 16 | . 10 16 16 16 Total Orders 2 | . . . . 2 GOTO 1 | . . . . 1 FOLLOW 1 | . . . . 1 Ally Attacks 9 | . . . . 9 Total Damage 108 | . . . . 108 Kills 1 | . . . . 1 Allies Corrupted . | . . . . . Allies Melted . | . . . . . Intel | -11 -10 -10 -10 -9 ------- Run | Scr Mat Min Exi Min Robot Analysis Total 2 | . 2 . . . Derelict Logs Recovered 1 | . . 1 . . Drone Launches . | . . . . . Drone Recoveries . | . . . . . Exploration | -11 -10 -10 -10 -9 ------------- Run | Scr Mat Min Exi Min Turns Passed 4056 | 96 1561 1354 843 202 Spaces Moved 2095 | 51 741 736 469 98 Core 5 | 5 . . . . Treads 1948 | 43 602 736 469 98 Legs . | . . . . . Wheels 142 | 3 139 . . . Hover . | . . . . . Flight . | . . . . . Fastest Speed 50 | 50 80 180 180 180 Average Speed 168 | 144 150 180 180 180 Slowest Speed 180 | 160 180 180 180 180 Overloaded Moves . | . . . . . Propulsion Burnouts . | . . . . . Robots Hopped . | . . . . . Cave-ins Triggered . | . . . . . Exploration Rate (%) 62 | 6 94 99 88 25 Regions Visited 4 Branch Regions 3 Pre-discovered Areas 1 | . 1 . . . Known Exits Taken . | . . . . . Unknown Exits Taken 4 | 1 1 1 1 . Scrap Searched 3 | . . 3 . . Spaces Dug . | . . . . . Terrain Destroyed 8 | . 3 . . 5 Melee . | . . . . . Projectile . | . . . . . AOE 8 | . 3 . . 5 Actions | -11 -10 -10 -10 -9 --------- Run | Scr Mat Min Exi Min Total 2450 | 65 1043 763 468 111 Wait 201 | . 173 25 . 3 Move 2091 | 50 740 735 468 98 Hop . | . . . . . Pick Up 22 | 6 16 . . . Fast Attach 12 | 5 7 . . . Attach 2 | 1 . . . 1 Detach . | . . . . . Swap 14 | . 12 . . 2 Drop 17 | . 16 1 . . Fire 90 | 3 79 1 . 7 Melee . | . . . . . Ram . | . . . . . Kick . | . . . . . Crush 1 | . . 1 . . Escape Stasis . | . . . . . Rewire . | . . . . . Trap . | . . . . . Miscellaneous . | . . . . . Route ------- -11/Scrapyard -10/Materials (discovered 4 exits: [*Mat x2] / [*Min x2]) -10/Mines (discovered 3 exits: [*Mat x2] / *Exi) -10/Exiles -9/Mines (discovered 1 exit: [*Mat]) History --------- Turn | Location | Event 35 | -11/Scrapyard | Discovered new exit (range 13) 97 | -11/Scrapyard | Entered Materials 97 | -10/Materials | Discovered new exit (range 7) 300 | -10/Materials | Build established: Mutant 672 | -10/Materials | Discovered new exit (range 5) 739 | -10/Materials | Central database locked down 932 | -10/Materials | Discovered new exit (range 16) 1175 | -10/Materials | Repaired Lgt. Treads 1208 | -10/Materials | Repaired Particle Cannon 1293 | -10/Materials | Discovered new exit (range 12) 1658 | -10/Materials | Entered Mines 1658 | -10/Mines | Accompanied by 1 ally 1680 | -10/Mines | Learned Materials garrison access intel 1680 | -10/Mines | Discovered new exit (range 8) 1907 | -10/Mines | Deemed a non-threat by the Exiles lab entrance 1907 | -10/Mines | Discovered new exit (range 5) 2217 | -10/Mines | Found a damaged Exp. Sensor Array with a note attached 2430 | -10/Mines | Found a hidden stash of uninstalled traps 2502 | -10/Mines | Discovered new exit (range 14) 2933 | -10/Mines | Assisted by bots powering up and referring to "LRC-V3" 3012 | -10/Mines | Entered Exiles 3012 | -10/Exiles | Found Exiles lab abandoned 3012 | -10/Exiles | Accompanied by 4 allies 3219 | -10/Exiles | Build established: Commander-Mutant 3380 | -10/Exiles | Discovered new exit (range 14) 3855 | -10/Exiles | Entered Mines 3855 | -9/Mines | Accompanied by 4 allies 3859 | -9/Mines | Met a Derelict bent on vengeance 4015 | -9/Mines | Discovered new exit (range 14) 4040 | -9/Mines | Assembled infested the area 4041 | -9/Mines | Core integrity fell below 50% 4056 | -9/Mines | Core integrity fell below 20% 4057 | -9/Mines | Destroyed by D-53 Grenadier with Mini Grenade Launcher Last Messages --------------- 03916_ Acquired 6 matter. 03924_ Acquired 18 matter. 04010_ K-01 Serf collects debris. 04015_ EXIT=FOUND 04017_ K-01 Serf collects debris. 04040_ ALERT: Infestation in the mines, dispatching Demolisher response squad. 04040_ Technician 1a destroyed. 04040_ Trooper 1a destroyed. 04040_ K-01 Serf collects debris. 04041_ Destroyed Shock Absorption System. 04041_ Trooper 1b destroyed. 04041_ K-01 Serf destroyed. 04043_ Mercenary 1a destroyed. 04043_ Particle Cannon destroyed. 04044_ K-01 Serf collects debris. 04045_ The unstable cave ceiling collapses. 04047_ K-01 Serf collects debris. 04049_ The unstable cave ceiling collapses. 04051_ K-01 Serf collects debris. Map ----- +----------------------------------------------------+ | ?????????### #???????## ##????????????????? | | ????????## #######?# #????????????????? | | ????????# #?# #????????????????? | | ????????# ### #????????????????? | | ????????## #### #?????????????????? | | ?????????######??# ##????????????????? | | ?????????????????### # ##???????????????? | | ????????????????## ##??????????????? | | ????????????????# ##?????????????? | | ????????????????# #?????????????? | | ????????????????# #?????????????? | | ????????????????# #?????????????? | | ????????????????## ## ##????????????? | | ?????????????????###?## #????????????? | | ??????????????????????## ##????????? #? | | ???????????????????????## #??????? #? | | ????????????????????????# k ##???? #? | | ???????????????????????## #### #? | | ???????????????????????# #? | | ???????????????????????# #? | | ??????????????????????## #? | | ?????????????????????## #? | | ????????????????????## #? | | ????????????????????# d ##? | | ????????????????????# d ##?? | | ????????????????????# @ %k #??? | | ????????????????????# k #??? | | ????????????????????# ## ##??? | | ??????????????????? ##? ######???? | | ????????????????? ##?? ##????????? | | ??????????????? ######??? #?????????? | | ??????????????#### ?????????# #?????????? | | ?????????????????## #??????????? ?????????? | | ?????????????????? #???????????? ?????????? | | ?????????????????## ????????????? ?????????? | | ??????????????????#??????????????? ?????????? | | ????????????????????????????????????????????? | | ????????????????????????????????????????????? | | ????????????????????????????????????????????? | | ????????????????????????????????????????????? | | ????????????????????????????????????????????? | | ????????????????????????????????????????????? | | ????????????????????????????????????????????? | | ????????????????????????????????????????????? | | ????????????????????????????????????????????? | | ????????????????????????????????????????????? | | ????????????????????????????????????????????? | | ????????????????????????????????????????????? | | ????????????????????????????????????????????? | | ????????????????????????????????????????????? | +----------------------------------------------------+ Best States ------------- Heat Dissipation 25 Energy Generation 12 Energy Capacity 525 Matter Stores 300 Matter Capacity 300 Sight Range 16 Terrain Scan Density 10 Armor Coverage 150 Evasion (%) 44 Recoil Reduction 2 Item Schematics ----------------- None Robot Schematics ------------------ None Fabricated ------------ Nothing Alien Tech Used ----------------- None Achievements -------------- None Challenges ------------ None Game ------ Seed RecyclingHeatMace Manual? 0 Play Time 00:18:03 Cumulative 219.1 hours Start 2020.09.01 @ 20:13:33 End 2020.09.01 @ 20:30:53 Sessions 1 Manual Loads 0 Difficulty Rogue Special Mode None Game No. 107 Rogue 106 Adventurer 1 Explorer 0 Win Type - Total 11 Types 7/1/2/1/0/0/0 Lore% 86 Gallery% 87 Achievement% 72 Wizard Run 0 Options --------- ASCII 1 Keyboard 1 Movement Numpad Keybinds 0 Fullscreen 2 Font 24/Smallcaps Map View 76x50 Tactical HUD 1 Map Filters NONE Filters NONE Steam 1 RUN: 2fae6e79-2893-471b-a9ee-2015eaafb03e